[Event "Titled Tuesday Blitz July 11 Late 2023"]
[White "Troff, Kayden"]
[Black "Srinath, Rao S.V."]
[WhiteFideId "2047896"]
[BlackFideId "5028876"]
[WhiteElo "2803"]
[BlackElo "2556"]
[Result "0-1"]
[Round "6"]
[TimeControl "180+2"]
[Date "2023.07.11"]
[WhiteClock "0:00:07"]
[BlackClock "0:00:31"]
[Board "34"]

1. d4 {[%clk 0:02:56]}  Nf6 {[%clk 0:02:59]} 2. Nf3 {[%clk 0:02:56]}  e6 {[%clk 0:02:58]} 3. Bf4 {[%clk 0:02:55]}  b6 {[%clk 0:02:53]} 4. e3 {[%clk 0:02:55]}  Bb7 {[%clk 0:02:54]} 5. Nbd2 {[%clk 0:02:55]}  c5 {[%clk 0:02:53]} 6. Nc4 {[%clk 0:02:54]}  d5 {[%clk 0:02:46]} 7. Nce5 {[%clk 0:02:54]}  a6 {[%clk 0:02:43]} 8. Ng5 {[%clk 0:02:53]}  Qe7 {[%clk 0:02:37]} 9. Nexf7 {[%clk 0:02:44]}  h6 {[%clk 0:02:36]} 10. Nxh8 {[%clk 0:02:36]}  hxg5 {[%clk 0:02:36]} 11. Bxg5 {[%clk 0:02:36]}  Nbd7 {[%clk 0:02:35]} 12. c3 {[%clk 0:02:36]}  O-O-O {[%clk 0:02:35]} 13. Ng6 {[%clk 0:02:35]}  Qf7 {[%clk 0:02:35]} 14. Nxf8 {[%clk 0:02:34]}  Rxf8 {[%clk 0:02:35]} 15. Bh4 {[%clk 0:02:34]}  Ne4 {[%clk 0:02:33]} 16. f3 {[%clk 0:02:32]}  g5 {[%clk 0:02:31]} 17. Bg3 {[%clk 0:02:32]}  Nxg3 {[%clk 0:02:27]} 18. hxg3 {[%clk 0:02:32]}  e5 {[%clk 0:02:20]} 19. dxc5 {[%clk 0:02:18]}  Nxc5 {[%clk 0:02:19]} 20. b4 {[%clk 0:02:12]}  Ne6 {[%clk 0:02:18]} 21. Be2 {[%clk 0:02:10]}  e4 {[%clk 0:02:14]} 22. Rc1 {[%clk 0:02:00]}  Qc7 {[%clk 0:02:06]} 23. Kf2 {[%clk 0:01:55]}  Kb8 {[%clk 0:01:59]} 24. c4 {[%clk 0:01:54]}  d4 {[%clk 0:01:59]} 25. exd4 {[%clk 0:01:53]}  e3+ {[%clk 0:01:56]} 26. Kxe3 {[%clk 0:01:39]}  Qxg3 {[%clk 0:01:56]} 27. d5 {[%clk 0:01:03]}  Nf4 {[%clk 0:01:54]} 28. Kd4 {[%clk 0:00:59]}  Qf2+ {[%clk 0:01:50]} 29. Kc3 {[%clk 0:00:45]}  Nxe2+ {[%clk 0:01:48]} 30. Kb3 {[%clk 0:00:45]}  Nxc1+ {[%clk 0:01:40]} 31. Qxc1 {[%clk 0:00:46]}  Qxg2 {[%clk 0:01:39]} 32. Rf1 {[%clk 0:00:26]}  Rxf3+ {[%clk 0:01:38]} 33. Rxf3 {[%clk 0:00:26]}  Qxf3+ {[%clk 0:01:38]} 34. Kb2 {[%clk 0:00:27]}  Qe2+ {[%clk 0:01:24]} 35. Kc3 {[%clk 0:00:19]}  Qe5+ {[%clk 0:01:24]} 36. Kb3 {[%clk 0:00:18]}  b5 {[%clk 0:01:23]} 37. cxb5 {[%clk 0:00:18]}  Bxd5+ {[%clk 0:01:21]} 38. Ka3 {[%clk 0:00:13]}  axb5 {[%clk 0:01:18]} 39. Qc5 {[%clk 0:00:11]}  Qg3+ {[%clk 0:01:14]} 40. Kb2 {[%clk 0:00:11]}  Qg2+ {[%clk 0:01:14]} 41. Kc1 {[%clk 0:00:11]}  Qf1+ {[%clk 0:01:10]} 42. Kd2 {[%clk 0:00:08]}  Qf4+ {[%clk 0:01:10]} 43. Ke1 {[%clk 0:00:06]}  Qe5+ {[%clk 0:01:05]} 44. Kd2 {[%clk 0:00:06]}  Qb2+ {[%clk 0:01:05]} 45. Ke1 {[%clk 0:00:07]}  Qa1+ {[%clk 0:01:04]} 46. Kd2 {[%clk 0:00:06]}  Qxa2+ {[%clk 0:01:05]} 47. Ke1 {[%clk 0:00:07]}  Qa1+ {[%clk 0:01:04]} 48. Kd2 {[%clk 0:00:07]}  Qb2+ {[%clk 0:01:04]} 49. Ke1 {[%clk 0:00:08]}  Qe5+ {[%clk 0:01:04]} 50. Kd2 {[%clk 0:00:08]}  Qf4+ {[%clk 0:01:04]} 51. Ke1 {[%clk 0:00:09]}  Qe4+ {[%clk 0:01:00]} 52. Kd2 {[%clk 0:00:09]}  Bc4 {[%clk 0:00:35]} 53. Qf8+ {[%clk 0:00:06]}  Kc7 {[%clk 0:00:33]} 54. Qg7+ {[%clk 0:00:06]}  Kc6 {[%clk 0:00:31]} 55. Qf6+ {[%clk 0:00:06]}  Qe6 {[%clk 0:00:30]} 56. Qxg5 {[%clk 0:00:06]}  Qd5+ {[%clk 0:00:31]} 57. Qxd5+ {[%clk 0:00:05]}  Kxd5 {[%clk 0:00:32]} 58. Kc3 {[%clk 0:00:05]}  Ke4 {[%clk 0:00:32]} 59. Kb2 {[%clk 0:00:06]}  Kd3 {[%clk 0:00:32]} 60. Ka3 {[%clk 0:00:07]}  Bd5 {[%clk 0:00:31]} 61. Kb2 {[%clk 0:00:07]}  Kc4 {[%clk 0:00:31]} 62. Ka3 {[%clk 0:00:07]}  Be6 {[%clk 0:00:31]} 0-1


[Site "https://www.chess.com"]

[Event "Titled Tuesday Blitz July 11 Late 2023"]
[White "Kadric, Denis"]
[Black "Sidletskyi, Ivan"]
[WhiteFideId "14403803"]
[BlackFideId "14156024"]
[WhiteElo "2784"]
[BlackElo "2554"]
[Result "1-0"]
[Round "6"]
[TimeControl "180+2"]
[Date "2023.07.11"]
[WhiteClock "0:02:07"]
[BlackClock "0:01:20"]
[Board "36"]

1. e4 {[%clk 0:02:53]}  e6 {[%clk 0:03:00]} 2. d3 {[%clk 0:02:53]}  d5 {[%clk 0:03:00]} 3. Nd2 {[%clk 0:02:53]}  Nf6 {[%clk 0:03:00]} 4. e5 {[%clk 0:02:54]}  Nfd7 {[%clk 0:03:00]} 5. f4 {[%clk 0:02:54]}  c5 {[%clk 0:03:00]} 6. g3 {[%clk 0:02:54]}  Nc6 {[%clk 0:02:54]} 7. Ndf3 {[%clk 0:02:54]}  b5 {[%clk 0:02:53]} 8. Bg2 {[%clk 0:02:54]}  Bb7 {[%clk 0:02:53]} 9. Nh3 {[%clk 0:02:55]}  Qb6 {[%clk 0:02:52]} 10. O-O {[%clk 0:02:55]}  c4+ {[%clk 0:02:46]} 11. d4 {[%clk 0:02:55]}  b4 {[%clk 0:02:14]} 12. c3 {[%clk 0:02:55]}  bxc3 {[%clk 0:02:10]} 13. bxc3 {[%clk 0:02:56]}  Qa5 {[%clk 0:02:11]} 14. Bd2 {[%clk 0:02:50]}  a6 {[%clk 0:01:59]} 15. f5 {[%clk 0:02:46]}  exf5 {[%clk 0:01:45]} 16. Qb1 {[%clk 0:02:36]}  Nb6 {[%clk 0:01:39]} 17. Qxf5 {[%clk 0:02:35]}  Bc8 {[%clk 0:01:39]} 18. Qf4 {[%clk 0:02:34]}  Be6 {[%clk 0:01:37]} 19. Nfg5 {[%clk 0:02:34]}  Be7 {[%clk 0:01:27]} 20. Nxe6 {[%clk 0:02:12]}  fxe6 {[%clk 0:01:28]} 21. Qf7+ {[%clk 0:02:13]}  Kd7 {[%clk 0:01:28]} 22. Ng5 {[%clk 0:02:12]}  Nd8 {[%clk 0:01:25]} 23. Qxg7 {[%clk 0:02:12]}  Re8 {[%clk 0:01:24]} 24. Nxh7 {[%clk 0:02:07]}  Qa4 {[%clk 0:01:20]} 1-0


[Site "https://www.chess.com"]

[Event "Titled Tuesday Blitz July 11 Late 2023"]
[White "Oro, Faustino"]
[Black "Yeritsyan, Hayk"]
[WhiteFideId "20000197"]
[BlackFideId "13307320"]
[WhiteElo "2735"]
[BlackElo "2532"]
[Result "1-0"]
[Round "6"]
[TimeControl "180+2"]
[Date "2023.07.11"]
[WhiteClock "0:00:07"]
[BlackClock "0:00:00"]
[Board "38"]

1. Nf3 {[%clk 0:03:00]}  d5 {[%clk 0:02:59]} 2. e3 {[%clk 0:03:00]}  Nf6 {[%clk 0:02:59]} 3. b3 {[%clk 0:02:59]}  Bf5 {[%clk 0:02:58]} 4. Bb2 {[%clk 0:03:00]}  e6 {[%clk 0:02:59]} 5. Be2 {[%clk 0:03:00]}  h6 {[%clk 0:02:59]} 6. O-O {[%clk 0:03:01]}  Be7 {[%clk 0:03:00]} 7. d4 {[%clk 0:03:00]}  O-O {[%clk 0:03:00]} 8. Bd3 {[%clk 0:03:00]}  Bxd3 {[%clk 0:02:58]} 9. Qxd3 {[%clk 0:03:01]}  c6 {[%clk 0:02:55]} 10. Nbd2 {[%clk 0:03:01]}  Nbd7 {[%clk 0:02:55]} 11. c4 {[%clk 0:03:01]}  Re8 {[%clk 0:02:54]} 12. e4 {[%clk 0:03:00]}  Nxe4 {[%clk 0:02:54]} 13. Nxe4 {[%clk 0:03:01]}  dxe4 {[%clk 0:02:55]} 14. Qxe4 {[%clk 0:03:02]}  Bf6 {[%clk 0:02:54]} 15. Rad1 {[%clk 0:03:01]}  Qc7 {[%clk 0:02:53]} 16. Rfe1 {[%clk 0:02:58]}  Rad8 {[%clk 0:02:53]} 17. Qc2 {[%clk 0:02:58]}  Nf8 {[%clk 0:02:49]} 18. Bc1 {[%clk 0:02:33]}  Ng6 {[%clk 0:02:44]} 19. Be3 {[%clk 0:02:32]}  Ne7 {[%clk 0:02:43]} 20. Qe4 {[%clk 0:02:17]}  Nf5 {[%clk 0:02:28]} 21. Bf4 {[%clk 0:02:06]}  Qa5 {[%clk 0:02:24]} 22. Re2 {[%clk 0:01:34]}  Ne7 {[%clk 0:02:18]} 23. h3 {[%clk 0:01:29]}  Qf5 {[%clk 0:02:14]} 24. Qe3 {[%clk 0:01:23]}  Qa5 {[%clk 0:01:56]} 25. Red2 {[%clk 0:01:19]}  Rd7 {[%clk 0:01:44]} 26. Be5 {[%clk 0:01:16]}  Nf5 {[%clk 0:01:24]} 27. Qf4 {[%clk 0:01:15]}  Bxe5 {[%clk 0:01:13]} 28. Nxe5 {[%clk 0:01:16]}  Rdd8 {[%clk 0:01:10]} 29. g4 {[%clk 0:00:45]}  f6 {[%clk 0:00:59]} 30. gxf5 {[%clk 0:00:41]}  fxe5 {[%clk 0:00:59]} 31. dxe5 {[%clk 0:00:38]}  Rxd2 {[%clk 0:00:58]} 32. Rxd2 {[%clk 0:00:37]}  exf5 {[%clk 0:00:57]} 33. Re2 {[%clk 0:00:35]}  Rf8 {[%clk 0:00:38]} 34. e6 {[%clk 0:00:34]}  Qc5 {[%clk 0:00:36]} 35. Re5 {[%clk 0:00:24]}  Qd6 {[%clk 0:00:14]} 36. c5 {[%clk 0:00:23]}  Qd1+ {[%clk 0:00:09]} 37. Kh2 {[%clk 0:00:22]}  Qc2 {[%clk 0:00:05]} 38. h4 {[%clk 0:00:10]}  Kh7 {[%clk 0:00:04]} 39. b4 {[%clk 0:00:09]}  Kg8 {[%clk 0:00:04]} 40. a4 {[%clk 0:00:09]}  Qxa4 {[%clk 0:00:03]} 41. e7 {[%clk 0:00:08]}  Re8 {[%clk 0:00:03]} 42. Qxf5 {[%clk 0:00:09]}  Qxb4 {[%clk 0:00:02]} 43. Qe6+ {[%clk 0:00:07]}  Kh7 {[%clk 0:00:00]} 44. Qf7 {[%clk 0:00:07]} 1-0


[Site "https://www.chess.com"]

[Event "Titled Tuesday Blitz July 11 Late 2023"]
[White "Matinian, Nikita"]
[Black "Koc, Przemyslaw"]
[WhiteFideId "24129100"]
[BlackFideId "1109081"]
[WhiteElo "2694"]
[BlackElo "2525"]
[Result "1-0"]
[Round "6"]
[TimeControl "180+2"]
[Date "2023.07.11"]
[WhiteClock "0:00:02"]
[BlackClock "0:00:14"]
[Board "40"]

1. e4 {[%clk 0:02:40]}  e5 {[%clk 0:02:59]} 2. Nf3 {[%clk 0:02:39]}  Nf6 {[%clk 0:02:59]} 3. d4 {[%clk 0:02:38]}  Nxe4 {[%clk 0:02:59]} 4. Bd3 {[%clk 0:02:38]}  d5 {[%clk 0:02:59]} 5. Nxe5 {[%clk 0:02:37]}  Nd7 {[%clk 0:02:59]} 6. Nc3 {[%clk 0:02:37]}  Nxe5 {[%clk 0:02:58]} 7. dxe5 {[%clk 0:02:38]}  Bf5 {[%clk 0:02:53]} 8. O-O {[%clk 0:02:36]}  Be7 {[%clk 0:02:49]} 9. Re1 {[%clk 0:02:34]}  O-O {[%clk 0:02:45]} 10. Bf4 {[%clk 0:02:30]}  Nxc3 {[%clk 0:02:40]} 11. bxc3 {[%clk 0:02:31]}  Qd7 {[%clk 0:02:39]} 12. h3 {[%clk 0:02:22]}  c6 {[%clk 0:02:36]} 13. g4 {[%clk 0:02:15]}  Bg6 {[%clk 0:02:32]} 14. Bg3 {[%clk 0:02:15]}  Bc5 {[%clk 0:02:10]} 15. Kg2 {[%clk 0:02:12]}  d4 {[%clk 0:01:49]} 16. c4 {[%clk 0:02:02]}  Rae8 {[%clk 0:01:43]} 17. f4 {[%clk 0:02:01]}  f5 {[%clk 0:01:33]} 18. exf6 {[%clk 0:01:47]}  gxf6 {[%clk 0:01:31]} 19. f5 {[%clk 0:01:41]}  Bf7 {[%clk 0:01:31]} 20. Qf3 {[%clk 0:01:34]}  b5 {[%clk 0:01:24]} 21. Be4 {[%clk 0:01:29]}  bxc4 {[%clk 0:01:16]} 22. Bxc6 {[%clk 0:01:28]}  Qd8 {[%clk 0:01:15]} 23. Kh2 {[%clk 0:00:50]}  Re3 {[%clk 0:01:12]} 24. Rxe3 {[%clk 0:00:44]}  dxe3 {[%clk 0:01:10]} 25. Rd1 {[%clk 0:00:44]}  Qb6 {[%clk 0:01:01]} 26. Bd5 {[%clk 0:00:35]}  Re8 {[%clk 0:00:52]} 27. Bxf7+ {[%clk 0:00:35]}  Kxf7 {[%clk 0:00:52]} 28. Rd7+ {[%clk 0:00:35]}  Re7 {[%clk 0:00:51]} 29. Qd5+ {[%clk 0:00:35]}  Ke8 {[%clk 0:00:47]} 30. Rxe7+ {[%clk 0:00:30]}  Kxe7 {[%clk 0:00:48]} 31. Qxc4 {[%clk 0:00:27]}  Kd7 {[%clk 0:00:25]} 32. Qd5+ {[%clk 0:00:23]}  Kc8 {[%clk 0:00:25]} 33. Kg2 {[%clk 0:00:10]}  a5 {[%clk 0:00:21]} 34. Kf3 {[%clk 0:00:09]}  Qb5 {[%clk 0:00:20]} 35. Qa8+ {[%clk 0:00:04]}  Kd7 {[%clk 0:00:20]} 36. Qd5+ {[%clk 0:00:04]}  Kc8 {[%clk 0:00:20]} 37. c4 {[%clk 0:00:04]}  Qb4 {[%clk 0:00:18]} 38. Qc6+ {[%clk 0:00:03]}  Kd8 {[%clk 0:00:18]} 39. Bc7+ {[%clk 0:00:03]}  Ke7 {[%clk 0:00:16]} 40. Qe6+ {[%clk 0:00:03]}  Kf8 {[%clk 0:00:17]} 41. Qxf6+ {[%clk 0:00:04]}  Ke8 {[%clk 0:00:17]} 42. Qe6+ {[%clk 0:00:03]}  Kf8 {[%clk 0:00:18]} 43. Qf6+ {[%clk 0:00:02]}  Ke8 {[%clk 0:00:18]} 44. Qc6+ {[%clk 0:00:02]}  Kf8 {[%clk 0:00:17]} 45. Bf4 {[%clk 0:00:01]}  Qc3 {[%clk 0:00:13]} 46. Bh6+ {[%clk 0:00:01]}  Kf7 {[%clk 0:00:14]} 47. Qe6# {[%clk 0:00:02]} 1-0


[Site "https://www.chess.com"]

[Event "Titled Tuesday Blitz July 11 Late 2023"]
[White "Lavrik, Dmitry"]
[Black "Andreassen, Lars"]
[WhiteFideId "24113190"]
[BlackFideId "1504878"]
[WhiteElo "2692"]
[BlackElo "2408"]
[Result "1-0"]
[Round "6"]
[TimeControl "180+2"]
[Date "2023.07.11"]
[WhiteClock "0:00:39"]
[BlackClock "0:00:00"]
[Board "41"]

1. Nf3 {[%clk 0:03:00]}  d5 {[%clk 0:02:58]} 2. g3 {[%clk 0:03:01]}  e6 {[%clk 0:02:57]} 3. Bg2 {[%clk 0:03:01]}  Nf6 {[%clk 0:02:57]} 4. O-O {[%clk 0:03:01]}  Be7 {[%clk 0:02:58]} 5. d3 {[%clk 0:03:02]}  O-O {[%clk 0:02:58]} 6. Nbd2 {[%clk 0:03:02]}  c5 {[%clk 0:02:58]} 7. e4 {[%clk 0:03:02]}  Nc6 {[%clk 0:02:58]} 8. Re1 {[%clk 0:03:03]}  b6 {[%clk 0:02:56]} 9. e5 {[%clk 0:03:02]}  Ne8 {[%clk 0:02:55]} 10. Nf1 {[%clk 0:03:01]}  Bb7 {[%clk 0:02:55]} 11. h4 {[%clk 0:03:01]}  h6 {[%clk 0:02:55]} 12. N1h2 {[%clk 0:03:01]}  Qc7 {[%clk 0:02:53]} 13. Ng4 {[%clk 0:02:59]}  d4 {[%clk 0:02:51]} 14. Bf4 {[%clk 0:02:54]}  Kh7 {[%clk 0:02:35]} 15. Qd2 {[%clk 0:02:39]}  h5 {[%clk 0:02:30]} 16. Nf6+ {[%clk 0:02:20]}  Kh8 {[%clk 0:02:18]} 17. Nxh5 {[%clk 0:02:12]}  Qd8 {[%clk 0:01:59]} 18. Ng5 {[%clk 0:02:11]}  g6 {[%clk 0:01:50]} 19. Qe2 {[%clk 0:02:08]}  Na5 {[%clk 0:01:24]} 20. Bxb7 {[%clk 0:01:52]}  Nxb7 {[%clk 0:01:25]} 21. Qf3 {[%clk 0:01:48]}  Qd5 {[%clk 0:01:19]} 22. Re4 {[%clk 0:01:47]}  Nd8 {[%clk 0:01:06]} 23. Bd2 {[%clk 0:01:46]}  Kg8 {[%clk 0:00:47]} 24. Nf4 {[%clk 0:01:45]}  Qd7 {[%clk 0:00:44]} 25. Nfh3 {[%clk 0:01:41]}  Rc8 {[%clk 0:00:42]} 26. h5 {[%clk 0:01:41]}  Ng7 {[%clk 0:00:33]} 27. g4 {[%clk 0:01:22]}  Rc6 {[%clk 0:00:20]} 28. Rae1 {[%clk 0:01:18]}  b5 {[%clk 0:00:20]} 29. Rf4 {[%clk 0:01:05]}  c4 {[%clk 0:00:17]} 30. Ne4 {[%clk 0:01:02]}  cxd3 {[%clk 0:00:14]} 31. cxd3 {[%clk 0:01:03]}  Rc2 {[%clk 0:00:14]} 32. Bb4 {[%clk 0:01:00]}  Rxb2 {[%clk 0:00:07]} 33. Bxe7 {[%clk 0:00:49]}  Qxe7 {[%clk 0:00:08]} 34. Nf6+ {[%clk 0:00:49]}  Kh8 {[%clk 0:00:08]} 35. Ng5 {[%clk 0:00:47]}  gxh5 {[%clk 0:00:00]} 36. Kg2 {[%clk 0:00:39]} 1-0


[Site "https://www.chess.com"]

[Event "Titled Tuesday Blitz July 11 Late 2023"]
[White "Seletsky, Grigory"]
[Black "Makarian, Rudik"]
[WhiteFideId "14112191"]
[BlackFideId "44105681"]
[WhiteElo "2434"]
[BlackElo "2943"]
[Result "0-1"]
[Round "6"]
[TimeControl "180+2"]
[Date "2023.07.11"]
[WhiteClock "0:00:08"]
[BlackClock "0:00:14"]
[Board "43"]

1. e4 {[%clk 0:03:00]}  c5 {[%clk 0:03:00]} 2. Nc3 {[%clk 0:03:00]}  Nc6 {[%clk 0:03:00]} 3. d3 {[%clk 0:03:00]}  g6 {[%clk 0:03:00]} 4. Be3 {[%clk 0:03:00]}  d6 {[%clk 0:03:00]} 5. d4 {[%clk 0:03:01]}  cxd4 {[%clk 0:03:00]} 6. Bxd4 {[%clk 0:03:02]}  Nf6 {[%clk 0:02:55]} 7. Bxf6 {[%clk 0:03:01]}  exf6 {[%clk 0:02:56]} 8. Bc4 {[%clk 0:03:00]}  Bh6 {[%clk 0:02:53]} 9. Nge2 {[%clk 0:03:00]}  O-O {[%clk 0:02:54]} 10. O-O {[%clk 0:03:00]}  Re8 {[%clk 0:02:53]} 11. Bb3 {[%clk 0:02:59]}  Kg7 {[%clk 0:02:48]} 12. Nd4 {[%clk 0:02:57]}  a6 {[%clk 0:02:44]} 13. Kh1 {[%clk 0:02:56]}  Bd7 {[%clk 0:02:42]} 14. f4 {[%clk 0:02:57]}  Qb6 {[%clk 0:02:41]} 15. Nxc6 {[%clk 0:02:53]}  Bxc6 {[%clk 0:02:39]} 16. Nd5 {[%clk 0:02:43]}  Qc5 {[%clk 0:02:27]} 17. Qd3 {[%clk 0:02:12]}  Rac8 {[%clk 0:02:22]} 18. c4 {[%clk 0:02:01]}  Bxd5 {[%clk 0:02:20]} 19. cxd5 {[%clk 0:01:53]}  Qb4 {[%clk 0:02:08]} 20. Rae1 {[%clk 0:01:34]}  Bxf4 {[%clk 0:02:07]} 21. a3 {[%clk 0:01:30]}  Qd2 {[%clk 0:02:06]} 22. Qxd2 {[%clk 0:01:19]}  Bxd2 {[%clk 0:02:07]} 23. Re2 {[%clk 0:01:18]}  Rc1 {[%clk 0:02:07]} 24. Rxc1 {[%clk 0:01:18]}  Bxc1 {[%clk 0:02:08]} 25. g4 {[%clk 0:01:16]}  Bf4 {[%clk 0:02:07]} 26. Kg2 {[%clk 0:01:16]}  Be5 {[%clk 0:02:07]} 27. Rc2 {[%clk 0:01:14]}  Bd4 {[%clk 0:02:06]} 28. Kf3 {[%clk 0:01:13]}  Re7 {[%clk 0:02:07]} 29. h4 {[%clk 0:01:11]}  Be5 {[%clk 0:02:05]} 30. a4 {[%clk 0:01:10]}  a5 {[%clk 0:02:04]} 31. Ba2 {[%clk 0:01:05]}  Bd4 {[%clk 0:02:03]} 32. b3 {[%clk 0:01:03]}  Bc5 {[%clk 0:02:01]} 33. Rc4 {[%clk 0:01:00]}  b5 {[%clk 0:01:58]} 34. axb5 {[%clk 0:00:59]}  Rb7 {[%clk 0:01:59]} 35. Bb1 {[%clk 0:00:51]}  Rxb5 {[%clk 0:01:57]} 36. Bc2 {[%clk 0:00:51]}  Rb8 {[%clk 0:01:54]} 37. Ke2 {[%clk 0:00:50]}  Rh8 {[%clk 0:01:51]} 38. h5 {[%clk 0:00:48]}  Kh6 {[%clk 0:01:50]} 39. Kf3 {[%clk 0:00:45]}  Kg5 {[%clk 0:01:50]} 40. Ra4 {[%clk 0:00:41]}  Bb4 {[%clk 0:01:50]} 41. Bd3 {[%clk 0:00:41]}  Rc8 {[%clk 0:01:39]} 42. Bc4 {[%clk 0:00:41]}  Bc3 {[%clk 0:01:17]} 43. Ra2 {[%clk 0:00:41]}  Rb8 {[%clk 0:01:15]} 44. Ra4 {[%clk 0:00:40]}  Re8 {[%clk 0:01:01]} 45. Ra2 {[%clk 0:00:39]}  Re7 {[%clk 0:01:00]} 46. Rc2 {[%clk 0:00:39]}  Bb4 {[%clk 0:00:59]} 47. hxg6 {[%clk 0:00:36]}  fxg6 {[%clk 0:00:53]} 48. Rh2 {[%clk 0:00:35]}  Rc7 {[%clk 0:00:52]} 49. Ra2 {[%clk 0:00:35]}  Rc8 {[%clk 0:00:49]} 50. Ra1 {[%clk 0:00:35]}  Rh8 {[%clk 0:00:47]} 51. Rh1 {[%clk 0:00:33]}  Bc3 {[%clk 0:00:46]} 52. Rc1 {[%clk 0:00:31]}  Be5 {[%clk 0:00:44]} 53. Rh1 {[%clk 0:00:32]}  h6 {[%clk 0:00:43]} 54. Bb5 {[%clk 0:00:26]}  Rb8 {[%clk 0:00:41]} 55. Bc4 {[%clk 0:00:24]}  Rb4 {[%clk 0:00:36]} 56. Rc1 {[%clk 0:00:24]}  a4 {[%clk 0:00:37]} 57. bxa4 {[%clk 0:00:24]}  Rxa4 {[%clk 0:00:38]} 58. Be2 {[%clk 0:00:20]}  Ra3+ {[%clk 0:00:38]} 59. Kg2 {[%clk 0:00:19]}  Kf4 {[%clk 0:00:37]} 60. Rf1+ {[%clk 0:00:18]}  Kxe4 {[%clk 0:00:37]} 61. Bf3+ {[%clk 0:00:18]}  Kf4 {[%clk 0:00:34]} 62. Be2+ {[%clk 0:00:16]}  Kg5 {[%clk 0:00:34]} 63. Bf3 {[%clk 0:00:16]}  Rd3 {[%clk 0:00:35]} 64. Rf2 {[%clk 0:00:16]}  Rd4 {[%clk 0:00:31]} 65. Re2 {[%clk 0:00:16]}  f5 {[%clk 0:00:30]} 66. gxf5 {[%clk 0:00:16]}  Kxf5 {[%clk 0:00:30]} 67. Rf2 {[%clk 0:00:16]}  Kg5 {[%clk 0:00:29]} 68. Rc2 {[%clk 0:00:15]}  h5 {[%clk 0:00:28]} 69. Rc8 {[%clk 0:00:15]}  Rd2+ {[%clk 0:00:28]} 70. Kf1 {[%clk 0:00:14]}  Kf4 {[%clk 0:00:25]} 71. Bg2 {[%clk 0:00:13]}  Ke3 {[%clk 0:00:25]} 72. Bh3 {[%clk 0:00:12]}  Rf2+ {[%clk 0:00:22]} 73. Kg1 {[%clk 0:00:11]}  g5 {[%clk 0:00:20]} 74. Be6 {[%clk 0:00:10]}  Bh2+ {[%clk 0:00:14]} 75. Kh1 {[%clk 0:00:09]}  Bf4 {[%clk 0:00:15]} 76. Rh8 {[%clk 0:00:08]}  Kf3 {[%clk 0:00:14]} 77. Rxh5 {[%clk 0:00:08]}  Rf1# {[%clk 0:00:14]} 0-1


[Site "https://www.chess.com"]

[Event "Titled Tuesday Blitz July 11 Late 2023"]
[White "caropawn10"]
[Black "Chor, Kevin"]
[BlackFideId "2090740"]
[WhiteElo "2703"]
[BlackElo "2526"]
[Result "0-1"]
[Round "6"]
[TimeControl "180+2"]
[Date "2023.07.11"]
[WhiteClock "0:00:04"]
[BlackClock "0:00:04"]
[Board "48"]

1. c4 {[%clk 0:02:59]}  c5 {[%clk 0:02:58]} 2. Nc3 {[%clk 0:02:57]}  Nf6 {[%clk 0:02:58]} 3. g3 {[%clk 0:02:57]}  g6 {[%clk 0:02:57]} 4. Bg2 {[%clk 0:02:57]}  Bg7 {[%clk 0:02:58]} 5. e4 {[%clk 0:02:57]}  O-O {[%clk 0:02:58]} 6. Nge2 {[%clk 0:02:57]}  Nc6 {[%clk 0:02:58]} 7. d3 {[%clk 0:02:57]}  d6 {[%clk 0:02:57]} 8. O-O {[%clk 0:02:57]}  Rb8 {[%clk 0:02:55]} 9. h3 {[%clk 0:02:57]}  a6 {[%clk 0:02:50]} 10. a4 {[%clk 0:02:57]}  Ne8 {[%clk 0:02:47]} 11. Be3 {[%clk 0:02:56]}  Nd4 {[%clk 0:02:45]} 12. Rc1 {[%clk 0:02:54]}  Nc7 {[%clk 0:02:38]} 13. f4 {[%clk 0:02:51]}  b5 {[%clk 0:02:34]} 14. axb5 {[%clk 0:02:49]}  axb5 {[%clk 0:02:34]} 15. cxb5 {[%clk 0:02:49]}  Ncxb5 {[%clk 0:02:33]} 16. Nxb5 {[%clk 0:02:48]}  Rxb5 {[%clk 0:02:31]} 17. Bxd4 {[%clk 0:02:39]}  cxd4 {[%clk 0:02:32]} 18. Qd2 {[%clk 0:02:38]}  Qb6 {[%clk 0:02:29]} 19. Rc2 {[%clk 0:02:38]}  Bd7 {[%clk 0:02:06]} 20. Rfc1 {[%clk 0:02:37]}  Rb8 {[%clk 0:02:06]} 21. Kf1 {[%clk 0:02:07]}  Rxb2 {[%clk 0:01:49]} 22. Rxb2 {[%clk 0:02:06]}  Qxb2 {[%clk 0:01:50]} 23. Qxb2 {[%clk 0:02:03]}  Rxb2 {[%clk 0:01:51]} 24. Rc7 {[%clk 0:02:03]}  Bb5 {[%clk 0:01:46]} 25. Rc8+ {[%clk 0:02:03]}  Bf8 {[%clk 0:01:45]} 26. Nxd4 {[%clk 0:02:04]}  Bxd3+ {[%clk 0:01:42]} 27. Kg1 {[%clk 0:02:04]}  Kg7 {[%clk 0:01:29]} 28. e5 {[%clk 0:01:54]}  dxe5 {[%clk 0:01:15]} 29. fxe5 {[%clk 0:01:55]}  e6 {[%clk 0:01:04]} 30. Rc7 {[%clk 0:01:54]}  Rb6 {[%clk 0:01:04]} 31. Kh2 {[%clk 0:01:48]}  Ba3 {[%clk 0:00:59]} 32. Nc6 {[%clk 0:01:36]}  Bb2 {[%clk 0:00:44]} 33. Nd8 {[%clk 0:01:29]}  Bxe5 {[%clk 0:00:44]} 34. Rxf7+ {[%clk 0:01:29]}  Kg8 {[%clk 0:00:41]} 35. Rf2 {[%clk 0:01:28]}  Bf5 {[%clk 0:00:29]} 36. Re2 {[%clk 0:01:21]}  Bc7 {[%clk 0:00:24]} 37. Nc6 {[%clk 0:01:19]}  Rb3 {[%clk 0:00:23]} 38. Ne5 {[%clk 0:01:19]}  Kg7 {[%clk 0:00:21]} 39. Bh1 {[%clk 0:00:57]}  h5 {[%clk 0:00:21]} 40. h4 {[%clk 0:00:54]}  Kf6 {[%clk 0:00:19]} 41. Nd7+ {[%clk 0:00:52]}  Ke7 {[%clk 0:00:19]} 42. Ne5 {[%clk 0:00:53]}  Rb5 {[%clk 0:00:18]} 43. Nf3 {[%clk 0:00:53]}  Bg4 {[%clk 0:00:18]} 44. Rc2 {[%clk 0:00:48]}  Bd6 {[%clk 0:00:15]} 45. Nd4 {[%clk 0:00:48]}  Rb1 {[%clk 0:00:13]} 46. Bg2 {[%clk 0:00:46]}  e5 {[%clk 0:00:12]} 47. Nc6+ {[%clk 0:00:45]}  Ke6 {[%clk 0:00:13]} 48. Rd2 {[%clk 0:00:44]}  Bc5 {[%clk 0:00:11]} 49. Bd5+ {[%clk 0:00:43]}  Kf6 {[%clk 0:00:09]} 50. Rc2 {[%clk 0:00:39]}  Bg1+ {[%clk 0:00:08]} 51. Kg2 {[%clk 0:00:39]}  Be3 {[%clk 0:00:08]} 52. Be4 {[%clk 0:00:19]}  Bf5 {[%clk 0:00:06]} 53. Bxf5 {[%clk 0:00:17]}  gxf5 {[%clk 0:00:07]} 54. Na5 {[%clk 0:00:16]}  Rg1+ {[%clk 0:00:05]} 55. Kh2 {[%clk 0:00:14]}  Ra1 {[%clk 0:00:05]} 56. Nc4 {[%clk 0:00:15]}  Bd4 {[%clk 0:00:06]} 57. Kg2 {[%clk 0:00:15]}  e4 {[%clk 0:00:06]} 58. Re2 {[%clk 0:00:15]}  Rc1 {[%clk 0:00:06]} 59. Nd2 {[%clk 0:00:15]}  Ke5 {[%clk 0:00:05]} 60. Nf3+ {[%clk 0:00:15]}  Kd5 {[%clk 0:00:06]} 61. Ng5 {[%clk 0:00:11]}  Rg1+ {[%clk 0:00:06]} 62. Kh2 {[%clk 0:00:11]}  Rf1 {[%clk 0:00:06]} 63. Nh3 {[%clk 0:00:11]}  Kc4 {[%clk 0:00:05]} 64. Kg2 {[%clk 0:00:12]}  Rd1 {[%clk 0:00:06]} 65. Rc2+ {[%clk 0:00:12]}  Kd3 {[%clk 0:00:06]} 66. Ra2 {[%clk 0:00:13]}  Be3 {[%clk 0:00:05]} 67. Ra3+ {[%clk 0:00:12]}  Ke2 {[%clk 0:00:06]} 68. Ra2+ {[%clk 0:00:13]}  Rd2 {[%clk 0:00:06]} 69. Ra4 {[%clk 0:00:13]}  Ke1+ {[%clk 0:00:06]} 70. Kh1 {[%clk 0:00:13]}  Bd4 {[%clk 0:00:05]} 71. Nf4 {[%clk 0:00:11]}  e3 {[%clk 0:00:05]} 72. Ng2+ {[%clk 0:00:10]}  Kf2 {[%clk 0:00:05]} 73. Kh2 {[%clk 0:00:08]}  Kf3 {[%clk 0:00:03]} 74. Kh3 {[%clk 0:00:08]}  e2 {[%clk 0:00:01]} 75. Ra1 {[%clk 0:00:03]}  Kf2 {[%clk 0:00:02]} 76. Re1 {[%clk 0:00:03]}  Rd1 {[%clk 0:00:02]} 77. Rxe2+ {[%clk 0:00:03]}  Kxe2 {[%clk 0:00:03]} 78. Nf4+ {[%clk 0:00:04]}  Kf3 {[%clk 0:00:04]} 79. Nxh5 {[%clk 0:00:04]}  Rh1# {[%clk 0:00:04]} 0-1


[Site "https://www.chess.com"]